bitfinex/quotes_BTCUSD_20230831
["timestamp","ask_amount","ask_price","bid_price","bid_amount"]
[1693497020472,0.18475805,26937.0,26932.0,1.47053049]
[1693497020680,0.19585805,26937.0,26933.0,0.3]
[1693497020883,0.09324,26936.0,26933.0,0.3]
[1693497021092,0.08676,26936.0,26933.0,0.3]
[1693497021314,0.30747672,26939.0,26934.0,2.0351546]
[1693497021315,0.17433672,26939.0,26934.0,2.0351546]
[1693497021521,0.17433672,26939.0,26935.0,0.6805878]
[1693497021522,0.08725718,26939.0,26935.0,0.6805878]
[1693497021737,0.08725718,26939.0,26936.0,0.36768085]
[1693497022173,0.34870577,26940.0,26936.0,0.36768085]
[1693497022174,0.37254881,26940.0,26936.0,0.36768085]
[1693497022384,0.24165952,26940.0,26936.0,0.51475319]
[1693497022627,0.08725952,26939.0,26936.0,0.36768085]
[1693497022838,0.37254881,26940.0,26937.0,0.06676809]
[1693497023056,0.43818881,26940.0,26937.0,0.06676809]
[1693497023265,0.44286881,26940.0,26937.0,0.06676809]
[1693497023476,0.30951952,26940.0,26937.0,0.06676809]
[1693497023682,0.06588,26939.0,26937.0,0.06676809]
[1693497023891,0.0831,26939.0,26938.0,0.04344489]
[1693497024095,0.07188,26939.0,26937.0,0.06676809]
[1693497024302,0.31863952,26940.0,26932.0,0.18145812]
[1693497024514,0.08725952,26940.0,26933.0,1.90460233]
[1693497024729,0.21814881,26942.0,26935.0,0.3869]
[1693497024946,0.43024881,26944.0,26939.0,0.75458085]
[1693497024947,0.21817301,26944.0,26939.0,0.75458085]
[1693497025171,0.08728588,26945.0,26940.0,0.83397234]
[1693497025383,0.08728588,26945.0,26941.0,0.36768085]
[1693497025615,0.08728588,26945.0,26942.0,0.44707234]
[1693497025829,0.08728588,26946.0,26943.0,0.22854766]
[1693497026036,0.08728588,26946.0,26943.0,0.59622851]
[1693497026307,0.08728588,26946.0,26943.0,0.44915617]
[1693497026939,0.2810947,26945.0,26943.0,0.08147532]
[1693497027190,0.13092882,26944.0,26936.0,0.3]
[1693497027465,0.13092882,26944.0,26936.0,0.66768085]
[1693497027466,0.08726903,26943.0,26936.0,0.66768085]
[1693497027744,0.08726903,26943.0,26937.0,0.3]
[1693497027745,0.08726903,26942.0,26937.0,0.3]
[1693497028012,0.18986903,26942.0,26938.0,0.06676809]
[1693497028282,0.0804,26941.0,26938.0,0.06676809]
[1693497028732,0.06372,26942.0,26938.0,0.06676809]
[1693497028752,0.16022903,26943.0,26938.0,0.06676809]
[1693497029008,0.0702,26943.0,26939.0,0.03667681]
[1693497029256,0.60257258,26944.0,26939.0,0.18374915]
[1693497029257,0.47166903,26944.0,26939.0,0.18374915]
[1693497029504,0.52658903,26944.0,26939.0,0.18374915]
[1693497029689,0.52742903,26944.0,26939.0,0.18374915]
[1693497029892,0.45356903,26944.0,26939.0,0.18374915]
[1693497030094,0.45356903,26944.0,26940.0,0.06181981]
[1693497030557,0.1608,26944.0,26941.0,0.36768085]
[1693497030781,0.21817258,26947.0,26942.0,0.3]
[1693497030979,0.21817258,26947.0,26943.0,0.14707234]
[1693497031182,0.21817258,26947.0,26944.0,0.08147532]
[1693497031183,0.08726903,26947.0,26944.0,0.08147532]
[1693497031385,0.08726903,26947.0,26944.0,0.22854766]
[1693497031386,0.21817258,26947.0,26944.0,0.22854766]
[1693497031590,0.08726903,26947.0,26945.0,0.14707234]
[1693497031794,0.08726903,26948.0,26944.0,0.59622851]
[1693497032003,0.00033414,26946.0,26944.0,0.59622851]
[1693497032211,0.00033414,26946.0,26945.0,0.05962285]
[1693497032602,0.02343907,26946.0,26945.0,0.4273037]
[1693497032752,0.08726903,26950.0,26945.0,0.7273037]
[1693497032971,0.08726903,26950.0,26946.0,0.81475319]
[1693497033179,0.08726903,26951.0,26946.0,0.81475319]
[1693497033376,0.08726903,26951.0,26947.0,0.0874376]
[1693497033570,0.13090355,26952.0,26948.0,0.36768085]
[1693497033571,0.21817258,26952.0,26948.0,0.36768085]
[1693497033777,0.08726903,26951.0,26947.0,0.0874376]
[1693497033976,0.08726903,26950.0,26946.0,0.3]
[1693497034181,0.21817258,26949.0,26945.0,0.35962285]
[1693497034406,0.08732054,26948.0,26945.0,0.05962285]
[1693497034607,0.16232054,26948.0,26941.0,0.3]
[1693497034829,0.50502135,26948.0,26942.0,0.36768085]
[1693497035035,0.49440135,26948.0,26943.0,0.3]
[1693497035240,0.18968054,26947.0,26943.0,0.66768085]
[1693497035443,0.17942054,26947.0,26943.0,0.66768085]
[1693497035665,0.16736054,26946.0,26944.0,0.06676809]
[1693497035873,0.18374054,26946.0,26937.0,0.34423]
[1693497036079,0.00033658,26945.0,26938.0,1.43739705]
[1693497036281,0.00033658,26945.0,26939.0,1.21678854]
[1693497036491,0.00033658,26945.0,26940.0,0.36768085]
[1693497036685,0.00033658,26945.0,26940.0,0.93846434]
[1693497036895,0.08732054,26948.0,26942.0,0.5839]
[1693497037106,0.08732054,26950.0,26945.0,0.197]
[1693497037315,0.61331027,26952.0,26947.0,0.3869]
[1693497037520,0.39294245,26953.0,26948.0,0.7069]
[1693497037730,0.3019,26957.0,26948.0,0.9039]
[1693497037731,0.17464109,26954.0,26948.0,0.9039]
[1693497037963,0.17464109,26954.0,26949.0,0.60514319]
[1693497038167,0.17464109,26954.0,26950.0,0.3]
[1693497038385,0.17464109,26954.0,26951.0,0.36768085]
[1693497038598,0.17464109,26954.0,26952.0,0.3]
[1693497038804,0.17464109,26954.0,26952.0,0.66768085]
[1693497039009,0.17464109,26954.0,26953.0,0.06676809]
[1693497039238,0.65693849,26955.0,26953.0,0.06676809]
[1693497039239,0.17464109,26955.0,26953.0,0.06676809]
[1693497039864,0.17464109,26955.0,26954.0,0.36768085]
[1693497040076,0.0882,26958.0,26954.0,1.22165319]
[1693497040077,0.17464109,26958.0,26954.0,1.22165319]
[1693497040290,0.17464109,26958.0,26955.0,0.44884213]
[1693497040518,0.17464109,26958.0,26956.0,0.36768085]
[1693497040746,0.17464109,26958.0,26957.0,0.3]
[1693497041605,0.17464109,26958.0,26957.0,0.66768085]
[1693497041833,0.17464109,26959.0,26957.0,0.66768085]
[1693497042065,0.17464109,26959.0,26958.0,0.45444894]
[1693497042498,0.17464109,26959.0,26958.0,0.06676809]
[1693497042722,0.26656109,26959.0,26954.0,0.02989303]
[1693497042949,0.61321887,26958.0,26954.0,0.3]
[1693497043186,0.91654023,26958.0,26950.0,0.3]
[1693497043399,0.24100109,26958.0,26951.0,0.36768085]
[1693497043606,0.39294245,26958.0,26952.0,0.3]
[1693497043811,0.24388109,26958.0,26953.0,0.43444894]
[1693497044028,0.17464109,26958.0,26954.0,0.3]
[1693497044235,0.17464109,26958.0,26955.0,0.36768085]
[1693497044435,0.61321776,26958.0,26956.0,0.3]
[1693497045099,0.10266,26957.0,26956.0,0.3]
[1693497045317,0.10266,26957.0,26956.0,0.33]
[1693497045318,0.09948,26957.0,26956.0,0.33]
[1693497045525,0.26200109,26957.0,26956.0,0.33]
[1693497045798,0.08064,26957.0,26956.0,0.33]
[1693497046006,0.081,26957.0,26956.0,0.33]
[1693497046227,0.08004,26957.0,26956.0,0.03]
[1693497046429,0.13073077,26957.0,26953.0,0.3]
[1693497046638,0.13073077,26957.0,26954.0,0.38768085]
[1693497046639,0.15883106,26957.0,26954.0,0.38768085]
[1693497046862,0.15883106,26957.0,26955.0,0.3]
[1693497047071,0.02810029,26957.0,26956.0,0.06876809]
[1693497047487,0.11525595,26957.0,26956.0,0.06876809]
[1693497047694,0.15883419,26957.0,26956.0,0.06876809]
[1693497047903,0.33314308,26957.0,26950.0,0.3]
[1693497048102,0.08715276,26956.0,26951.0,0.38768085]
[1693497048314,0.08715276,26956.0,26952.0,0.3]
[1693497048518,0.21788368,26956.0,26952.0,0.66768085]
[1693497048948,0.08715276,26956.0,26952.0,0.66768085]
[1693497049170,0.08715276,26956.0,26953.0,0.06876809]
[1693497049391,0.24598397,26957.0,26953.0,0.43644894]
[1693497049615,0.24598397,26957.0,26954.0,0.32]
[1693497049827,0.08715276,26956.0,26955.0,0.36768085]
[1693497050026,0.15883121,26957.0,26955.0,0.66768085]
[1693497050027,0.02810029,26957.0,26955.0,0.66768085]
[1693497050251,0.16914264,26956.0,26955.0,0.3]
[1693497050459,0.18582264,26956.0,26955.0,0.3]
[1693497050668,0.24276396,26956.0,26955.0,0.3]
[1693497050888,0.3311924,26956.0,26949.0,0.03028515]
[1693497051088,0.08710844,26955.0,26950.0,0.36768085]
[1693497051298,0.17656844,26955.0,26951.0,0.03676809]
[1693497051519,0.08710844,26955.0,26952.0,0.36768085]
[1693497051931,0.2177924,26956.0,26952.0,0.36768085]
[1693497052363,0.08710844,26955.0,26953.0,0.32]
[1693497052563,0.08710844,26955.0,26954.0,0.36768085]
[1693497052779,0.08710844,26955.0,26954.0,0.73644894]
[1693497053428,0.15268844,26955.0,26954.0,0.36876809]
[1693497053631,0.15268844,26955.0,26954.0,0.3]
[1693497053843,0.0756,26955.0,26951.0,0.03676809]
[1693497054063,0.2177924,26956.0,26952.0,0.36768085]
[1693497054271,0.2177924,26956.0,26953.0,0.3]
[1693497054481,0.08710844,26957.0,26954.0,0.36768085]
[1693497054684,0.08710844,26957.0,26955.0,0.3]
[1693497054896,0.13068396,26957.0,26956.0,0.06676809]
[1693497055303,0.2177827,26957.0,26956.0,0.06676809]
[1693497055513,0.21778232,26957.0,26956.0,0.06676809]
[1693497055720,0.21778232,26957.0,26951.0,0.3]
[1693497055933,0.08709836,26956.0,26952.0,0.38768085]
[1693497056137,0.08709836,26956.0,26953.0,0.3]
[1693497056343,0.08709836,26957.0,26954.0,0.38768085]
[1693497056545,0.21778232,26958.0,26955.0,0.3]
[1693497056751,0.21778232,26958.0,26956.0,0.06876809]
[1693497057786,0.08709836,26958.0,26956.0,0.06876809]
[1693497057986,0.21778232,26958.0,26956.0,0.06876809]
[1693497058200,0.08709836,26957.0,26956.0,0.06876809]
[1693497058415,0.08709836,26957.0,26939.0,0.2206]
[1693497058416,0.25086529,26957.0,26939.0,0.2206]
[1693497058638,0.08707686,26954.0,26948.0,0.36768085]
[1693497058850,0.08707686,26954.0,26949.0,0.36768085]
[1693497058851,0.08707686,26953.0,26949.0,0.36768085]
[1693497059265,0.29311216,26954.0,26946.0,0.148484]
[1693497059475,0.17833686,26952.0,26942.0,0.1859]
[1693497059690,0.08707686,26952.0,26943.0,1.49559563]
[1693497059894,0.0954,26951.0,26944.0,1.06951769]
[1693497060106,0.0954,26951.0,26945.0,0.36768085]
[1693497060107,0.08724,26951.0,26945.0,0.36768085]
[1693497060320,0.36768085,26950.0,26943.0,0.05839709]
[1693497060523,0.69344085,26950.0,26943.0,0.05839709]
[1693497060800,0.10014,26949.0,26942.0,0.197]
[1693497061011,0.09984,26949.0,26943.0,1.06954856]
[1693497061222,0.099,26949.0,26943.0,1.06954856]
[1693497061438,0.10938,26949.0,26943.0,1.06954856]
[1693497061654,0.03062346,26948.0,26943.0,1.06954856]
[1693497061867,0.03062346,26948.0,26944.0,0.77463571]
[1693497062300,0.2246,26950.0,26944.0,0.77463571]
[1693497062503,0.2246,26950.0,26944.0,0.92170805]
[1693497063127,0.2246,26950.0,26944.0,0.77463571]
[1693497063128,0.07056,26949.0,26944.0,0.77463571]
[1693497063333,0.08707686,26948.0,26944.0,0.40695486]
[1693497063548,0.08707686,26948.0,26944.0,0.3]
[1693497063549,0.07878,26948.0,26944.0,0.3]
[1693497063763,0.06504,26947.0,26940.0,0.02886384]
[1693497063992,0.23404,26948.0,26941.0,1.43731224]
[1693497064208,0.23356,26948.0,26942.0,1.36963139]
[1693497064411,0.2233,26948.0,26942.0,0.81475319]
[1693497064679,0.22228,26948.0,26942.0,0.81475319]
[1693497064882,0.22864,26948.0,26943.0,0.08147532]
[1693497065118,0.06462,26947.0,26943.0,0.08147532]
[1693497065326,0.06366,26947.0,26943.0,0.08147532]
[1693497065574,0.06642,26947.0,26944.0,0.36768085]
[1693497065778,0.1543,26948.0,26944.0,0.36768085]
[1693497065779,0.1543,26948.0,26945.0,0.3]
[1693497065982,0.1543,26948.0,26946.0,0.06876809]
[1693497066594,0.51723216,26950.0,26946.0,0.06876809]
[1693497066796,0.51705216,26950.0,26946.0,0.06876809]
[1693497066996,0.51561216,26950.0,26946.0,0.06876809]
[1693497067202,0.08707686,26949.0,26946.0,0.06876809]
[1693497067404,0.08707686,26949.0,26947.0,0.07364489]
[1693497068473,0.50895216,26950.0,26947.0,0.07364489]
[1693497068683,0.50991216,26950.0,26947.0,0.07364489]
[1693497068895,0.28459216,26950.0,26947.0,0.07364489]
[1693497069117,0.08707686,26949.0,26947.0,0.07364489]
[1693497069325,0.08707686,26950.0,26948.0,0.36768085]
[1693497069531,0.08707686,26951.0,26949.0,0.34413257]
[1693497069731,0.1306153,26952.0,26949.0,0.34413257]
[1693497069732,0.08707686,26952.0,26949.0,0.71181342]
[1693497070194,0.21769216,26952.0,26949.0,0.71181342]
[1693497070416,0.08707686,26951.0,26949.0,0.71181342]
[1693497070624,0.08707686,26951.0,26950.0,0.09083134]
[1693497071271,0.1306153,26952.0,26950.0,0.09083134]
[1693497071272,0.21769216,26952.0,26950.0,0.09083134]
[1693497071379,0.08707686,26951.0,26950.0,0.09083134]
[1693497072416,0.21769216,26952.0,26950.0,0.09083134]
[1693497072621,0.1306153,26951.0,26950.0,0.09083134]
[1693497072922,0.08725572,26951.0,26950.0,0.28683134]
[1693497073136,0.08725572,26951.0,26950.0,0.58683134]
[1693497073772,0.0872645,26953.0,26950.0,4.12043619]
[1693497073974,0.0872645,26953.0,26951.0,1.03546989]
[1693497074182,0.0872645,26953.0,26951.0,1.05546989]
[1693497074386,0.0872645,26953.0,26951.0,0.68768085]
[1693497074813,0.1746531,26955.0,26951.0,0.68768085]
[1693497075031,0.1746531,26954.0,26951.0,0.68768085]
[1693497075224,0.65639307,26955.0,26951.0,0.68768085]
[1693497075225,0.1746531,26955.0,26951.0,0.68768085]
[1693497075993,0.1746531,26953.0,26951.0,0.3]
[1693497076220,0.83105526,26953.0,26948.0,0.01101321]
[1693497076431,0.39245971,26951.0,26939.0,0.05561053]
[1693497076752,1.19881052,26950.0,26941.0,1.7695073]
[1693497076955,0.1746531,26948.0,26942.0,1.30884867]
[1693497077292,0.08292,26947.0,26942.0,0.23934137]
[1693497077476,0.0819,26947.0,26942.0,0.23934137]
[1693497077689,0.36768085,26946.0,26940.0,0.2448617]
[1693497077893,0.76014056,26946.0,26940.0,0.0175]
[1693497078096,0.2756331,26945.0,26940.0,0.16457234]
[1693497078298,0.21780661,26946.0,26940.0,0.0175]
[1693497078299,0.56253971,26946.0,26940.0,0.0175]
[1693497078471,0.3472531,26946.0,26940.0,0.0175]
[1693497078673,0.0666,26945.0,26940.0,0.16457234]
[1693497079014,0.06564,26945.0,26940.0,0.0175]
[1693497079222,0.2451531,26946.0,26940.0,0.05221567]
[1693497079439,0.066,26945.0,26940.0,0.16457234]
[1693497079620,0.06516,26945.0,26941.0,0.3]
[1693497079829,0.10512,26945.0,26940.0,0.0175]
[1693497080032,0.03681115,26945.0,26940.0,0.0175]
[1693497080231,0.06864,26944.0,26940.0,0.0175]
[1693497080432,0.07722,26945.0,26940.0,0.03895]
[1693497080645,0.0777,26945.0,26940.0,0.03895]
[1693497080857,0.07968,26945.0,26940.0,0.03895]
[1693497081072,0.07902,26944.0,26940.0,0.03895]
[1693497081287,0.25584,26944.0,26940.0,0.03895]
[1693497081494,0.1143,26943.0,26940.0,0.03895]
[1693497081623,0.62700085,26944.0,26940.0,0.0175]
[1693497082037,0.11136,26943.0,26940.0,0.0175]
[1693497082243,0.10488,26943.0,26940.0,0.0175]
[1693497082442,0.09714,26942.0,26940.0,0.0175]
[1693497082642,0.49572085,26944.0,26940.0,0.0175]
[1693497082643,0.1137,26943.0,26940.0,0.0175]
[1693497082844,0.11988,26943.0,26940.0,0.0175]
[1693497083047,0.11892,26943.0,26940.0,0.0175]
[1693497083260,0.261,26943.0,26940.0,0.0175]
[1693497083506,0.25752,26943.0,26940.0,0.0175]
[1693497083709,0.26736,26943.0,26940.0,0.0175]
[1693497083913,0.1218,26942.0,26940.0,0.0175]
[1693497084122,0.09942,26942.0,26940.0,0.0175]
[1693497084372,0.46576019,26945.0,26940.0,0.0175]
[1693497084373,0.37552,26943.0,26940.0,0.0175]
[1693497084611,0.36964,26943.0,26940.0,0.0175]
[1693497084817,0.1047,26942.0,26940.0,0.0175]
[1693497085016,0.10344,26942.0,26940.0,0.0175]
[1693497085245,0.10272,26942.0,26940.0,0.0175]
[1693497085411,0.0996,26942.0,26940.0,0.0175]
[1693497085745,0.11796,26942.0,26940.0,0.0175]
[1693497085966,0.10104,26941.0,26940.0,0.0175]
[1693497086168,0.09804,26941.0,26940.0,0.0175]
[1693497086374,0.11268,26942.0,26940.0,0.0175]
[1693497086574,0.1152,26942.0,26940.0,0.0175]
[1693497086788,0.11466,26942.0,26940.0,0.0175]
[1693497086994,0.11268,26942.0,26940.0,0.0175]
[1693497087218,0.11256,26942.0,26940.0,0.0175]
[1693497087425,0.44768085,26941.0,26940.0,0.0175]
[1693497087818,0.71600085,26941.0,26940.0,0.0175]
[1693497088042,0.72380085,26941.0,26940.0,0.0175]
[1693497088242,0.56324085,26941.0,26940.0,0.0175]
[1693497088359,0.55670085,26941.0,26940.0,0.0175]
[1693497088555,0.08,26941.0,26940.0,0.0175]
[1693497088962,0.14372,26941.0,26940.0,0.0175]
[1693497089166,0.15422,26941.0,26940.0,0.0175]
[1693497089412,0.47762085,26941.0,26940.0,0.0175]
[1693497089616,0.73688518,26941.0,26940.0,0.0175]
[1693497089839,0.75236518,26941.0,26940.0,0.0175]
[1693497090021,0.76244518,26941.0,26940.0,0.0175]
[1693497090224,0.75800518,26941.0,26940.0,0.0175]
[1693497090425,0.75876518,26941.0,26940.0,0.0175]
[1693497090628,0.74280518,26941.0,26940.0,0.0175]
[1693497090779,0.73968518,26941.0,26940.0,0.0175]
[1693497090979,0.72228518,26941.0,26940.0,0.0175]
[1693497091237,0.72120518,26941.0,26940.0,0.0175]
[1693497091434,0.73464518,26941.0,26940.0,0.0175]
[1693497091632,0.81464518,26941.0,26940.0,0.0175]
[1693497091842,0.1,26939.0,26932.0,0.3]
[1693497092065,0.1,26939.0,26929.0,0.02]
[1693497092066,0.04,26936.0,26928.0,0.148576]
[1693497092286,0.04,26936.0,26926.0,0.01140168]
[1693497092287,0.68518085,26935.0,26926.0,0.01140168]
[1693497092503,1.08500035,26935.0,26924.0,0.02]
[1693497092705,0.29088,26934.0,26925.0,1.43784775]
[1693497092915,0.49200085,26934.0,26926.0,1.23065891]
[1693497093116,0.1633,26933.0,26927.0,1.0701669]
[1693497093323,0.25288,26933.0,26927.0,1.0701669]
[1693497093529,0.07032,26932.0,26927.0,1.21723924]
[1693497093730,0.07572,26932.0,26928.0,1.0701669]
[1693497093939,0.07602,26932.0,26929.0,0.10701669]
[1693497094139,0.07662,26932.0,26926.0,0.46049201]
[1693497094348,0.0708,26932.0,26927.0,1.3700861]
[1693497094549,0.0708,26932.0,26927.0,0.3]
[1693497094550,0.07368,26932.0,26927.0,0.3]
[1693497094761,0.0702,26932.0,26928.0,1.0700844]
[1693497094971,0.2175,26935.0,26929.0,0.81475319]
[1693497095192,1.6826995,26940.0,26930.0,1.2584672]
[1693497095193,0.1607795,26939.0,26930.0,1.2584672]
[1693497095390,0.67490085,26939.0,26931.0,0.44707234]
[1693497095623,0.06348,26938.0,26931.0,0.44707234]
[1693497095827,0.06972,26938.0,26931.0,0.44707234]
[1693497096034,0.06978,26938.0,26932.0,0.11897369]
[1693497096262,0.1472,26935.0,26933.0,0.3]
[1693497096706,0.1472,26935.0,26933.0,0.29]
[1693497097672,0.1842,26935.0,26933.0,0.293]
[1693497098089,0.037,26935.0,26933.0,0.293]
[1693497098298,0.037,26935.0,26934.0,0.04119737]
[1693497098508,0.1472,26938.0,26934.0,0.04119737]
[1693497098693,0.1472,26938.0,26934.0,0.18826971]
[1693497098956,0.009,26935.0,26934.0,0.55595056]
[1693497099163,0.009,26935.0,26934.0,0.70887822]
[1693497099588,0.1472,26940.0,26934.0,0.72887822]
[1693497099798,0.1472,26940.0,26935.0,0.58764101]
[1693497100007,0.036,26938.0,26935.0,0.88764101]
[1693497100213,0.036,26938.0,26935.0,0.74056867]
[1693497100419,0.1472,26940.0,26935.0,0.74056867]
[1693497100627,0.1472,26940.0,26935.0,0.88764101]
[1693497100831,0.1472,26940.0,26936.0,0.09488384]
[1693497101045,0.1842,26940.0,26936.0,0.46256469]
[1693497101257,0.1842,26940.0,26937.0,0.3]
[1693497101258,0.1472,26938.0,26937.0,0.3]
[1693497101472,0.1472,26938.0,26936.0,0.09488384]
[1693497101682,0.1472,26938.0,26935.0,0.303]
[1693497101683,0.25118,26938.0,26935.0,0.303]
[1693497101891,0.1472,26936.0,26935.0,0.3]
[1693497102316,0.1472,26936.0,26934.0,0.07119737]
[1693497102535,0.1472,26936.0,26931.0,0.3]
[1693497102744,0.1472,26936.0,26932.0,1.06995657]
[1693497102950,0.1472,26936.0,26935.0,0.004]
[1693497103371,0.1472,26936.0,26933.0,0.3]
[1693497103808,0.003,26936.0,26934.0,0.36768085]
[1693497104013,0.003,26936.0,26935.0,0.36676809]
[1693497105643,0.1472,26939.0,26935.0,0.36676809]
[1693497105851,0.003,26936.0,26935.0,0.39676809]
[1693497106468,1.7428,26941.0,26935.0,1.82436264]
[1693497106674,0.06262263,26936.0,26935.0,0.38776809]
[1693497106882,0.009,26939.0,26935.0,1.09184756]
[1693497107086,0.009,26939.0,26936.0,1.58684756]
[1693497107294,1.7428,26941.0,26937.0,1.06984592]
[1693497107514,1.7428,26941.0,26938.0,0.3]
[1693497107722,1.7428,26941.0,26938.0,0.66768085]
[1693497107940,1.7798,26941.0,26939.0,0.06676809]
[1693497108146,0.069,26940.0,26938.0,0.3]
[1693497108356,0.1472,26939.0,26938.0,0.3]
[1693497108573,0.1472,26939.0,26937.0,0.003]
[1693497108771,0.1472,26938.0,26937.0,0.003]
[1693497108998,0.23468,26938.0,26937.0,0.003]
[1693497109216,0.23468,26938.0,26928.0,0.148576]
[1693497109218,0.00072653,26936.0,26928.0,0.148576]
[1693497109445,0.1472,26933.0,26932.0,1.07006473]
[1693497109651,0.1472,26933.0,26932.0,1.07007099]
[1693497109863,0.1472,26933.0,26928.0,1.07007099]
[1693497110090,0.00072653,26936.0,26929.0,0.36768085]
[1693497110091,0.21878653,26936.0,26929.0,0.36768085]
[1693497110292,0.21878653,26936.0,26930.0,1.21384617]
[1693497110293,0.22148653,26936.0,26930.0,1.21384617]
[1693497110513,0.22112653,26936.0,26931.0,1.43775184]
[1693497110751,0.00072653,26936.0,26932.0,1.21714333]
[1693497110964,1.96229142,26941.0,26933.0,1.75775184]
[1693497110965,1.81334942,26941.0,26933.0,1.75775184]
[1693497111197,1.68270017,26941.0,26934.0,1.40942575]
[1693497111415,0.1472,26940.0,26935.0,1.73775184]
[1693497111629,0.002,26936.0,26935.0,0.81475319]
[1693497111833,0.1472,26938.0,26935.0,0.66768085]
[1693497112048,0.1492,26938.0,26937.0,0.013]
[1693497112255,0.1492,26938.0,26937.0,0.18806104]
[1693497112458,0.37674017,26940.0,26937.0,0.3]
[1693497112665,0.37326017,26940.0,26938.0,0.3]
[1693497112877,0.37836017,26940.0,26938.0,0.3]
[1693497113092,0.08710017,26939.0,26924.0,0.06628094]
[1693497113302,0.2207,26936.0,26933.0,1.36999301]
[1693497113508,0.2207,26936.0,26935.0,0.002]
[1693497113753,0.2207,26936.0,26935.0,0.302]
[1693497114172,0.07668,26938.0,26935.0,0.302]
[1693497114382,0.2207,26939.0,26935.0,0.66968085]
[1693497114608,0.28592,26939.0,26936.0,0.08671809]
[1693497114816,0.28964,26939.0,26936.0,0.08671809]
[1693497115045,0.29078,26939.0,26938.0,0.002]
[1693497115257,0.2207,26939.0,26938.0,0.002]
[1693497115463,0.30780017,26939.0,26938.0,0.002]
[1693497115670,0.30780017,26939.0,26936.0,0.08671809]
[1693497115879,0.2227,26939.0,26937.0,0.07543989]
[1693497116092,0.034,26939.0,26937.0,0.07543989]
[1693497116318,0.034,26939.0,26937.0,0.37543989]
[1693497116319,0.032,26939.0,26937.0,0.37543989]
[1693497116733,0.48878102,26939.0,26938.0,0.001]
[1693497116945,0.33884825,26939.0,26938.0,0.001]
[1693497117160,0.95529342,26939.0,26938.0,0.001]
[1693497117374,1.36901439,26939.0,26938.0,0.001]
[1693497117612,1.41707288,26939.0,26938.0,0.001]
[1693497117826,2.58083475,26939.0,26926.0,0.02909549]
[1693497118037,0.08716346,26933.0,26927.0,1.07020709]
[1693497118249,0.2207,26931.0,26927.0,1.07020709]
[1693497118472,0.08716346,26933.0,26927.0,1.07020709]
[1693497118473,0.37782346,26934.0,26927.0,1.43788794]
[1693497118689,0.38190346,26934.0,26928.0,1.07020709]
[1693497118897,0.2939,26934.0,26928.0,1.07020709]
[1693497119113,0.2864,26934.0,26929.0,0.81146964]
[1693497119322,0.00680322,26937.0,26930.0,1.26820709]
[1693497119532,0.00680322,26937.0,26931.0,1.90496028]
[1693497119748,0.00680322,26937.0,26932.0,1.07020709]
[1693497119959,0.00680322,26937.0,26933.0,0.3]
[1693497119960,0.028,26934.0,26933.0,0.3]
[1693497120172,0.028,26934.0,26933.0,1.97838397]
[1693497121223,0.00680322,26937.0,26933.0,1.97838397]
[1693497121519,0.00680322,26937.0,26934.0,1.07020709]
[1693497121520,0.00299996,26937.0,26934.0,1.07020709]
[1693497121653,0.06276,26936.0,26934.0,1.07020709]
[1693497121864,0.06276,26936.0,26933.0,0.304]
[1693497121865,0.2207,26935.0,26933.0,0.304]
[1693497122115,0.30786346,26935.0,26934.0,0.0304]
[1693497122341,0.38388346,26935.0,26934.0,0.0304]
[1693497122556,0.42368519,26935.0,26934.0,0.0304]
[1693497122767,0.42296519,26935.0,26934.0,0.0304]
[1693497122982,0.42290519,26935.0,26928.0,0.3]
[1693497123193,0.08732868,26934.0,26933.0,0.001]
[1693497123404,0.08732868,26934.0,26933.0,1.07103137]
[1693497123608,0.21807387,26934.0,26933.0,1.37103137]
[1693497123820,0.08732868,26934.0,26933.0,1.50817006]
[1693497124447,0.21807387,26934.0,26933.0,1.50817006]
[1693497124872,0.08732868,26934.0,26933.0,1.50717006]
[1693497125313,0.21807387,26934.0,26933.0,1.50717006]
[1693497125529,0.22194519,26934.0,26933.0,1.20717006]
[1693497125739,0.22194519,26934.0,26933.0,1.23517251]
[1693497125740,0.39907211,26934.0,26933.0,1.23517251]
[1693497125951,0.20200519,26934.0,26933.0,1.23817432]
[1693497126171,0.21711141,26934.0,26933.0,1.23517432]
[1693497126386,0.06646,26934.0,26933.0,1.23517432]
[1693497126610,0.10366,26934.0,26933.0,1.23917432]
[1693497126814,0.10654,26934.0,26933.0,1.23914081]
[1693497127026,0.268,26934.0,26933.0,1.10203767]
[1693497127253,0.268,26934.0,26933.0,0.032]
[1693497127254,1.32971149,26934.0,26933.0,0.032]
[1693497127498,1.09752284,26934.0,26933.0,0.032]
[1693497127720,1.12320284,26934.0,26933.0,0.032]
[1693497127956,2.03549322,26934.0,26927.0,0.02935053]
[1693497128164,2.03549322,26934.0,26916.0,0.10955003]
[1693497128165,0.52876966,26928.0,26916.0,0.210606]
[1693497128372,0.52876966,26928.0,26922.0,1.09239698]
[1693497128373,0.08736966,26928.0,26922.0,1.09239698]
[1693497128587,0.2207,26925.0,26923.0,1.07024934]
[1693497128801,0.2918,26927.0,26923.0,1.07024934]
[1693497129025,0.28982,26927.0,26923.0,1.07024934]
[1693497129205,0.2207,26927.0,26923.0,1.07024934]
[1693497129447,0.2207,26927.0,26924.0,0.77692055]
[1693497129662,0.28442,26927.0,26925.0,1.07024934]
[1693497129870,0.07008,26926.0,26925.0,1.07024934]
[1693497130089,0.06276,26926.0,26925.0,1.37024934]
[1693497130296,0.06318,26926.0,26925.0,1.37024934]
[1693497130503,0.31442,26927.0,26925.0,1.51819824]
[1693497130714,0.31604,26927.0,26926.0,1.07024934]
[1693497130917,0.31244,26927.0,26926.0,1.07024934]
[1693497131129,0.31688,26927.0,26926.0,1.07024934]
[1693497131335,0.3214,26927.0,26926.0,1.07024934]
[1693497131543,0.85894085,26927.0,26921.0,0.17560056]
[1693497131751,0.85894085,26927.0,26922.0,1.0703881]
[1693497131752,0.2207,26923.0,26922.0,1.0703881]
[1693497132161,0.31394,26923.0,26922.0,1.0703881]
[1693497132373,0.2207,26923.0,26922.0,1.19386942]
[1693497133001,0.2387,26923.0,26922.0,1.19386942]
[1693497133206,0.2407,26923.0,26922.0,1.19386942]
[1693497133413,0.30922,26923.0,26922.0,1.0703881]
[1693497133617,0.30226,26923.0,26922.0,1.0703881]
[1693497133828,0.30082,26923.0,26922.0,1.0703881]